Cogmind - Beta 13 @@@ ROGUE MODE // 2024.06.06 @ 19:24:37 Player: Jason Result: Destroyed by S-43 Plague with Heavy Machine Gun Performance ------------- Evolutions (6) 3000 Regions Visited (21) 4200 Robots Destroyed (176) 880 Value Destroyed (6650) 6650 Prototype IDs (52) 1040 Alien Tech Used (2) 400 Bonus (1969) 1969 TOTAL SCORE: 18139 Bonus ------- High Alert Combat Kills 40 Follower Combat Kills 154 Aligned with FarCom 300 Met Zhirov 300 Met Warlord at Base 500 MAIN.C Attacked Warlord 500 Warlord Defense Kills 186 Friendly Fire -11 Cogmind --------- Core Integrity 0/1150 Matter 67/300 Energy 100/100 System Corruption 2% Temperature Cool (0) Movement Flying (40) Location -3/Proximity Caves Parts ------- > --- POWER (1) -------- (None) > --- PROPULSION (6) --- Xenon Bombardment Thruster > --- UTILITY (8) ------ Machine Analyzer Enhanced Optical Array Advanced Signal Interpreter Advanced Targeting Computer Advanced System Shield > --- WEAPON (4) ------- Hypervelocity Coil Gun > --- INVENTORY (5) ---- Improved Actuator Array Magnetic Acceleration Cannon Peak State ------------ > --- POWER ------------ Micro Fission Core > --- PROPULSION ------- Carbon-fiber Leg Flexi-carbon Leg Flexi-carbon Leg Improved Antigrav System Improved Antigrav System Improved Antigrav System > --- UTILITY ---------- Medium Storage Unit Machine Analyzer Enhanced Optical Array Improved Sensor Array Advanced Signal Interpreter Advanced Targeting Computer Precision Energy Filter Improved Core Shielding > --- WEAPON ----------- Heavy Disruptor Cannon Hypervelocity Coil Gun Powered Hammer > --- INVENTORY -------- Improved Antigrav System Heavy Disruptor Cannon Hypervelocity Coil Gun Hypervelocity Coil Gun Heavy Flak Cannon Hypervelocity Mass Driver Hypervelocity Mass Driver Vortex Catalyst Activator [Rating: 103] Favorites ----------- Power Light Deuterium Engine Engine Light Deuterium Engine Power Core Micro Fission Core Reactor Light Particle Reactor Propulsion Light Treads Treads Light Treads Leg Aluminum Leg Wheel Armored Huge Wheel Hover Unit Improved Antigrav System Flight Unit Improved Cesium-ion Thruster Utility Advanced Targeting Computer Device Advanced Heat Sink Storage Medium Storage Unit Processor Advanced Targeting Computer Hackware System Shield Protection Improved Core Shielding Weapon Gatling Laser Energy Gun Gatling Laser Energy Cannon Phase Cannon Ballistic Gun Heavy Assault Rifle Ballistic Cannon Assault Cannon Launcher Heavy Missile Launcher Impact Weapon Hammer Slashing Weapon Chainsword Build | -11 -10 -10 -9 -9 -9 -8 -8 -7 -7 -7 -6 -5 -5 -5 -5 -4 -4 -4 -4 -4 -3 ------- Run | Yrd Mat Min Mat Min Exi Min Mat Fac Was Fac Fac Fac Upp Upp War Pro Fac Upp Upp Zhi Pro Slots Evolved 12 | . . . 2 . . . 2 2 . . 2 2 . . . . 2 . . . . Power . | . . . . . . . . . . . . . . . . . . . . . . Propulsion 4 | . . . 2 . . . . . . . . 1 . . . . 1 . . . . Utility 6 | . . . . . . . 1 2 . . 1 1 . . . . 1 . . . . Weapon 2 | . . . . . . . 1 . . . 1 . . . . . . . . . . Parts Attached 245 | 8 4 4 3 3 1 . 15 33 6 30 41 32 2 5 17 8 5 5 8 8 7 Power 19 | 1 . 1 . . . . 1 2 . 5 4 2 . . 2 1 . . . . . Engine 14 | 1 . 1 . . . . . 2 . 4 3 2 . . 1 . . . . . . Core 4 | . . . . . . . 1 . . 1 1 . . . . 1 . . . . . Reactor 1 | . . . . . . . . . . . . . . . 1 . . . . . . Propulsion 67 | 2 . . 2 . . . 6 10 3 4 13 8 . . 7 2 3 2 . 4 1 Treads 12 | 2 . . 1 . . . . 2 . 1 . 5 . . . . . 1 . . . Leg 33 | . . . 1 . . . 4 7 2 . 6 . . . 7 2 . 1 . 3 . Wheel 9 | . . . . . . . . 1 . 3 4 1 . . . . . . . . . Hover 5 | . . . . . . . . . . . . 1 . . . . 3 . . 1 . Flight 8 | . . . . . . . 2 . 1 . 3 1 . . . . . . . . 1 Utility 83 | 2 . . 1 1 . . 3 11 2 12 14 17 2 4 4 2 1 1 1 4 1 Device 36 | 1 . . . . . . . 3 2 4 6 11 1 2 . 1 1 . 1 3 . Storage 7 | 1 . . . 1 . . 1 . . 1 1 1 . . 1 . . . . . . Processor 11 | . . . . . . . 1 . . 5 1 3 1 . . . . . . . . Hackware 4 | . . . . . . . . 2 . . . . . 1 . . . . . . 1 Protection 25 | . . . 1 . . . 1 6 . 2 6 2 . 1 3 1 . 1 . 1 . Artifact . | . . . . . . . . . . . . . . . . . . . . . . Weapon 76 | 3 4 3 . 2 1 . 5 10 1 9 10 5 . 1 4 3 1 2 7 . 5 Energy Gun 17 | . . . . . 1 . 2 2 . 5 4 1 . . 2 . . . . . . Energy Cannon 7 | . . . . . . . . . . . 2 1 . . . . 1 . 2 . 1 Ballistic Gun 13 | 3 1 1 . 1 . . . 1 . 2 . . . . . 2 . . . . 2 Ballistic Cannon 14 | . 1 1 . . . . 1 3 . . . 2 . . 1 . . . 4 . 1 Launcher 12 | . 1 . . 1 . . . 1 . 1 3 1 . . . 1 . 1 1 . 1 Special Weapon . | . . . . . . . . . . . . . . . . . . . . . . Impact Weapon 9 | . 1 1 . . . . 2 3 1 . . . . . 1 . . . . . . Slashing Weapon 4 | . . . . . . . . . . 1 1 . . 1 . . . 1 . . . Piercing Weapon . | . . . . . . . . . . . . . . . . . . . . . . Special Melee Weapon . | . . . . . . . . . . . . . . . . . . . . . . Unidentified Prototypes 14 | . . . . . . . 2 . 2 . 3 1 . . 1 1 . . . 4 . Corrupted Parts 3 | . . . . . . . . 2 . . . . . . . . . . 1 . . System Corruption 9 | . . . . . . . . 7 . . . . . . . . . . 2 . . Parts Lost 101 | . . . . . . . 2 10 6 1 19 23 1 . 8 5 . 8 5 . 13 Power 10 | . . . . . . . . 1 1 1 2 3 . . 1 . . . 1 . . Propulsion 34 | . . . . . . . 2 4 1 . 3 8 . . 2 4 . 3 2 . 5 Utility 31 | . . . . . . . . 4 3 . 7 6 1 . 1 1 . 2 2 . 4 Weapon 26 | . . . . . . . . 1 1 . 7 6 . . 4 . . 3 . . 4 Highest Loss Streak 10 | . . . . . . . 1 3 6 1 5 10 1 . 8 3 . 4 5 . 6 To Critical Strikes . | . . . . . . . . . . . . . . . . . . . . . . Average Slot Usage (%) 83 | . 100 100 96 100 91 88 89 97 55 76 83 81 46 48 73 87 90 80 69 54 56 Engine 4 | . 14 14 11 11 11 11 6 4 4 4 4 4 . . 3 . . . . . . Core 1 | . . . . . . . 2 2 . 1 1 . . . . 5 5 5 4 . . Treads 9 | . 28 28 32 33 33 33 22 2 . . . 4 . . . . . 4 5 . . Leg 10 | . . . 8 11 11 11 13 26 17 . 1 16 . . 3 27 15 14 9 12 14 Wheel 2 | . . . . . . . . . . 13 10 . . . . . . . . . . Hover 1 | . . . . . . . . . . . . . 5 5 8 . 13 4 . 5 2 Device 6 | . 14 14 1 . . . . 4 8 6 10 12 10 7 4 4 7 6 4 1 4 Storage 6 | . 14 14 11 11 11 11 9 7 4 4 6 4 . . 2 5 5 5 5 5 3 Processor 13 | . . . . . . . 8 7 5 17 12 14 28 23 23 23 21 21 21 21 21 Hackware 1 | . . . . . . . . 7 . . . . . 4 4 . . . . . . Protection 6 | . . . 9 11 11 11 9 8 4 6 8 3 . 2 2 5 5 6 9 6 5 Energy Gun 6 | . . . . . 7 11 10 9 4 12 13 3 . . 8 . . . . . . Energy Cannon 1 | . . . . . . . . . . . 3 3 . . . . 2 4 . . . Ballistic Gun 3 | . 20 14 11 10 3 . . 3 . 2 . . . . . 6 7 2 . . . Ballistic Cannon 2 | . . 3 11 11 3 . 3 4 1 . . 3 . . . . . . 6 2 . Impact Weapon 1 | . 7 10 . . . . 3 2 3 . . . . . . 5 5 2 . . . Slashing Weapon 1 | . . . . . . . . . . 2 5 3 . 1 4 . . . . . . Naked Turns 98 | . . . . . . . . . 60 38 . . . . . . . . . . . Heaviest Build 68 | 15 16 19 26 31 31 31 48 68 68 41 52 62 3 6 50 33 48 48 58 26 34 Greatest Support 110 | 40 40 40 60 60 60 60 60 45 45 56 65 84 3 3 93 93 55 60 40 110 110 Greatest Overweight (x) 22 | 3 . . . . . . 2 22 1 1 13 3 . 1 3 . . 1 1 1 . Average Overweight (x) . | . . . . . . . . . . . . . . . . . . . . . . Largest Inventory Capacity 15 | 8 8 8 8 10 10 10 15 15 15 10 10 10 5 5 10 10 10 10 10 10 10 Average Capacity 10 | 7 8 8 8 9 10 10 14 15 10 8 10 9 5 5 7 10 10 10 10 10 8 Most Carried 15 | 3 8 8 8 10 10 10 15 15 15 10 10 10 5 5 10 8 10 10 10 10 10 Average Carried 9 | 2 7 7 7 9 9 9 13 13 10 7 9 8 4 4 6 4 7 9 8 9 7 Final Capacity 15 | 8 8 8 8 10 10 10 15 15 5 10 10 5 5 5 10 10 10 10 10 10 5 Final Carried 15 | 3 8 8 8 10 10 10 15 15 5 10 10 5 5 5 9 4 10 10 10 10 2 Class Distribution -------------------- 38% | Mutant 14% | Scavenger-Mutant 9% | Scavenger-Skirmisher 8% | Scavenger-Assassin 7% | Gunner 5% | Tank 5% | Derelict-Assassin 4% | Scavenger-Tank Dominant Class ---------------- Mutant | -10/Materials Mutant | -10/Mines Mutant | -9/Materials Mutant | -9/Mines Mutant | -9/Exiles Mutant | -8/Mines Mutant | -8/Materials Scavenger-Mutant | -7/Factory Scavenger-Assassin | -7/Waste Gunner | -7/Factory Tank | -6/Factory Scavenger-Tank | -5/Factory Mutant | -5/Upper Caves Mutant | -5/Upper Caves Derelict-Assassin | -5/Warlord Scavenger-Assassin | -4/Proximity Caves Scavenger-Assassin | -4/Factory Scavenger-Assassin | -4/Upper Caves Scavenger-Mutant | -4/Upper Caves Mutant | -4/Zhirov Mutant | -3/Proximity Caves Resources | -11 -10 -10 -9 -9 -9 -8 -8 -7 -7 -7 -6 -5 -5 -5 -5 -4 -4 -4 -4 -4 -3 ----------- Run | Yrd Mat Min Mat Min Exi Min Mat Fac Was Fac Fac Fac Upp Upp War Pro Fac Upp Upp Zhi Pro Matter Collected 4388 | 249 49 126 198 48 10 . 299 559 . 877 410 506 62 206 290 75 90 85 189 . 60 Remotely . | . . . . . . . . . . . . . . . . . . . . . . Salvage Created 6647 | 28 72 283 232 16 . 260 1012 810 . 794 1239 659 . 119 70 200 90 362 253 . 148 Parts 297 | 1 7 12 10 7 . 13 38 52 . 42 50 31 . . 3 4 3 5 11 . 8 Haulers Intercepted 2 | . . . . . . . 2 . . . . . . . . . . . . . . Recyclers Shooed 4 | . . . . . . . . . . 3 . 1 . . . . . . . . . Parts Field Recycled . | . . . . . . . . . . . . . . . . . . . . . . Retrieved Matter . | . . . . . . . . . . . . . . . . . . . . . . Parts Self-Destructed 24 | . . . . . . . . . . . . . . . . 3 . 1 15 . 5 Prevented 4 | . . . . . . . . . . . . . . . . . . 4 . . . Kills | -11 -10 -10 -9 -9 -9 -8 -8 -7 -7 -7 -6 -5 -5 -5 -5 -4 -4 -4 -4 -4 -3 ------- Run | Yrd Mat Min Mat Min Exi Min Mat Fac Was Fac Fac Fac Upp Upp War Pro Fac Upp Upp Zhi Pro Combat Hostiles Destroyed 127 | . 3 2 6 4 . 8 17 19 . 15 21 14 . . 2 3 1 4 4 . 4 Melee 1 | . . . . . . . . . . 1 . . . . . . . . . . . Guns 59 | . . 1 2 . . 8 12 9 . 12 7 2 . . 2 1 . 1 . . 2 Cannons 34 | . . 1 4 . . . 4 3 . . 4 11 . . . . . 1 4 . 2 AOE 25 | . 3 . . 4 . . . 7 . 2 6 . . . . 2 . 1 . . . Classes Destroyed 17 | 1 2 3 1 . . 1 2 1 . 1 1 1 . . . 1 . 2 . . . Worker 10 | . . 3 . . . . 2 2 . 2 1 . . . . . . . . . . Builder 18 | . 3 3 . . . . . 3 . 4 3 2 . . . . . . . . . Tunneler 7 | 1 . 2 . . . . 1 . . 1 2 . . . . . . . . . . Hauler 2 | . . . . . . . 2 . . . . . . . . . . . . . . Recycler 3 | . . . . . . . . . . 1 1 1 . . . . . . . . . Mechanic 3 | . . . 1 . . . . 1 . . 1 . . . . . . . . . . Drone 1 | . . . . . . . . . . . . . . . . 1 . . . . . Watcher 6 | . . . . . . . 2 1 . . 3 . . . . . . . . . . Swarmer 26 | . 3 . . 4 . 4 . 4 . 1 4 1 . . 1 . . . . . 4 Grunt 51 | . . 1 5 . . 3 12 9 . 8 9 . . . . . . . 4 . . Brawler 2 | . . . . . . . . . . . 2 . . . . . . . . . . Duelist 2 | . . . . . . . . . . . . . . . . . . 2 . . . Sentry 17 | . . 1 1 . . . 5 1 . 3 3 1 . . . . 1 1 . . . Specialist 2 | . . . . . . . . . . . . 2 . . . . . . . . . Hunter 4 | . . . . . . 1 . 1 . . . 1 . . 1 . . . . . . Programmer 21 | . . . . . . . . 4 . 3 3 9 . . . 2 . . . . . Behemoth 1 | . . . . . . . . . . . . . . . . . . 1 . . . Best Kill Streak 5 | 1 4 2 3 4 . 5 4 5 . 4 5 2 . . 2 2 1 1 4 . 2 Combat Bots Only 5 | . 3 1 3 4 . 5 3 4 . 3 3 2 . . 2 2 1 1 4 . 2 Max Kills in Single Turn 5 | 1 2 1 1 4 . 1 1 5 . 3 5 1 . . 1 1 1 1 1 . 1 Gunslinging . | . . . . . . . . . . . . . . . . . . . . . . Exploded 4 | . 2 . . 4 . . . 3 . 2 3 . . . . 1 . 1 . . . Melee 1 | . . . . . . . . . . 1 . . . . . . . . . . . Uniques/NPCs Destroyed . | . . . . . . . . . . . . . . . . . . . . . . Combat | -11 -10 -10 -9 -9 -9 -8 -8 -7 -7 -7 -6 -5 -5 -5 -5 -4 -4 -4 -4 -4 -3 -------- Run | Yrd Mat Min Mat Min Exi Min Mat Fac Was Fac Fac Fac Upp Upp War Pro Fac Upp Upp Zhi Pro Hostile Shots Fired 1394 | . 10 5 34 4 . 18 48 139 9 107 197 339 . . 120 22 6 42 99 . 195 Missed 461 | . 3 1 16 1 . 5 19 39 . 39 53 95 . . 52 7 1 14 34 . 82 Damage Taken 16746 | . 60 48 222 83 . 207 507 1514 405 992 2619 3352 126 . 1614 473 120 742 1056 . 2606 Core 2702 | . 6 . 13 . . . 60 276 278 60 302 313 62 . 257 17 18 41 134 . 865 Absorbed by Shields 543 | . . . . . . . . . . 8 20 515 . . . . . . . . . Reduced by Siege Mode 17 | . . . . . . . . 17 . . . . . . . . . . . . . Redirected to Shielding 240 | . . . . . . . . . . . . . . . 24 6 7 17 10 . 176 Regen/Repaired (Parts) 258 | . . . . . . . . . . 202 . . . . 56 . . . . . . Core Remaining (%) 70 | 100 . 97 . . . 96 89 . . 12 64 . . . . 35 . . . . . Volleys Fired 372 | 3 2 4 21 1 . . 41 57 7 34 67 60 . . 2 9 3 20 24 . 17 Largest 3 | 2 1 2 2 2 . . 1 3 1 3 3 3 . . 3 2 1 2 2 . 1 Hottest 250 | 40 30 67 67 80 . . 69 172 55 235 250 223 . . 185 70 110 145 163 . 110 Shots Fired 776 | 6 2 7 42 2 . 28 103 142 7 78 138 124 . . 6 15 3 25 31 . 17 Gun 465 | 6 . 3 21 . . 28 74 99 7 76 81 35 . . 6 12 . 7 . . 10 Cannon 286 | . . 4 21 1 . . 29 40 . . 51 86 . . . . 3 14 31 . 6 Launcher 25 | . 2 . . 1 . . . 3 . 2 6 3 . . . 3 . 4 . . 1 Special . | . . . . . . . . . . . . . . . . . . . . . . Kinetic 294 | 6 . 7 42 1 . . 29 72 . 21 . 54 . . . 12 . 7 28 . 15 Thermal 399 | . . . . . . 28 69 52 . 55 124 67 . . 4 . . . . . . Explosive 17 | . 2 . . 1 . . . 3 . 2 6 3 . . . . . . . . . Electromagnetic 56 | . . . . . . . 5 15 7 . 8 . . . . . 3 14 3 . 1 Entropic 10 | . . . . . . . . . . . . . . . 2 3 . 4 . . 1 Robot Hit Streak 21 | 6 7 3 8 5 . 16 17 20 4 19 21 16 . . 1 5 8 12 6 . 4 Robot Miss Streak 6 | . 1 1 5 . . 1 2 6 1 5 3 2 . . 4 4 . 4 1 . 2 Penetration Max 2 | . . . . . . . . . . . . 1 . . . . . 1 2 . . Secondary Targets 1 | . . . . . . . . . . . 1 . . . . . . . . . . Max Gunslinging Chain 1 | . . . . . . . . . . . 1 . . . . . . . . . . Autonomous 91 | . . . . . . 28 63 . . . . . . . . . . . . . . Shots Hit Robots 557 | 6 3 13 27 1 . 25 86 86 5 63 93 91 . 4 3 12 3 16 10 . 10 Core Hits 326 | 1 4 3 10 4 . 11 29 38 2 82 77 26 . 1 10 6 1 7 6 . 8 Critical Kills 12 | . . 1 . . . . . . . . . 1 . . . 1 . 1 4 . 4 Critical Parts Destroyed 14 | . . 3 . . . . 3 . . . . . . . 1 2 . . 4 . 1 Critical Strikes 44 | . . 4 . . . . 5 2 . 1 4 7 . . 1 3 2 2 8 . 5 Burn 8 | . . . . . . . . 2 . . 4 2 . . . . . . . . . Meltdown 1 | . . . . . . . . . . . . 1 . . . . . . . . . Destroy 18 | . . 1 . . . . . . . . . . . . . 2 . 2 8 . 5 Blast 6 | . . . . . . . 2 . . . . 4 . . . . . . . . . Corrupt 2 | . . . . . . . . . . . . . . . . . 2 . . . . Smash 7 | . . 3 . . . . 3 . . . . . . . . 1 . . . . . Sever 1 | . . . . . . . . . . 1 . . . . . . . . . . . Detonate 1 | . . . . . . . . . . . . . . . 1 . . . . . . Melee Attacks 166 | . 6 18 . . . . 18 29 . 20 40 23 . 4 . 3 4 1 . . . Impact 79 | . 6 18 . . . . 18 29 . . . . . . . 3 4 1 . . . Slashing 87 | . . . . . . . . . . 20 40 23 . 4 . . . . . . . Piercing . | . . . . . . . . . . . . . . . . . . . . . . Sneak Attacks 26 | . 2 9 . . . . 3 2 . 3 5 2 . . . . . . . . . Combat Hostiles . | . . . . . . . . . . . . . . . . . . . . . . Follow-up Attacks . | . . . . . . . . . . . . . . . . . . . . . . Damage Inflicted 18953 | 77 345 589 512 276 . 726 2440 2635 7 2032 3195 3094 . 219 662 761 90 900 269 . 124 Guns 7504 | 77 . 31 217 . . 726 1748 1039 7 1454 1402 501 . . 156 60 . 35 . . 51 Cannons 5065 | . . 44 295 . . . 392 567 . . 710 2357 . . . . 90 268 269 . 73 Explosions 3964 | . 237 . . 276 . . . 903 . 255 754 72 . . 506 488 . 473 . . . Melee 2370 | . 108 510 . . . . 285 126 . 312 329 144 . 219 . 213 . 124 . . . Ramming 50 | . . 4 . . . . 15 . . 11 . 20 . . . . . . . . . Kinetic 4279 | 77 . 75 512 . . . 392 747 . 338 . 1710 . . . 60 . 35 238 . 95 Thermal 8462 | . . . . . . 726 1646 1111 . 1116 2160 1148 . . 555 . . . . . . Explosive 1865 | . 237 . . 276 . . . 436 . 255 589 72 . . . . . . . . . Electromagnetic 859 | . . . . . . . 102 215 7 . 117 . . . . . 90 268 31 . 29 Impact 1366 | . 108 510 . . . . 285 126 . . . . . . . 213 . 124 . . . Slashing 1004 | . . . . . . . . . . 312 329 144 . 219 . . . . . . . Piercing . | . . . . . . . . . . . . . . . . . . . . . . Entropic 1068 | . . . . . . . . . . . . . . . 107 488 . 473 . . . Highest Corruption 19 | . . . . . . . . 9 9 16 8 18 19 19 19 2 . . 2 2 2 Average Corruption 8 | . . . . . . . . 1 9 12 6 8 18 19 19 1 . . 2 2 2 Corruption Purged 5 | . . . . . . . . . . 5 . . . . . . . . . . . Corruption Blocked . | . . . . . . . . . . . . . . . . . . . . . . Effects 284 | . . . . . . . . 14 10 91 54 47 21 15 7 . . . 20 4 1 Message Errors 73 | . . . . . . . . 4 3 20 14 15 7 4 2 . . . 3 1 . Matter Fused 66 | . . . . . . . . 5 1 18 13 11 3 7 3 . . . 4 1 . Heat Flow Errors 45 | . . . . . . . . 3 3 14 7 4 3 2 . . . . 7 1 1 Energy Discharges 30 | . . . . . . . . 1 1 10 8 6 2 . . . . . 2 . . Parts Rejected 4 | . . . . . . . . 1 . . 1 2 . . . . . . . . . Parts Fused 6 | . . . . . . . . . . 3 . . 2 . . . . . 1 . . Data Loss (minor) 22 | . . . . . . . . . 2 12 3 1 1 . 1 . . . 2 . . Data Loss (major) 13 | . . . . . . . . . . 3 2 2 2 2 1 . . . 1 . . Misfires 9 | . . . . . . . . . . 4 2 3 . . . . . . . . . Alerts 5 | . . . . . . . . . . 1 1 1 1 . . . . . . 1 . Misdirections 2 | . . . . . . . . . . 2 . . . . . . . . . . . Weapon Failures 9 | . . . . . . . . . . 4 3 2 . . . . . . . . . Overload Shots . | . . . . . . . . . . . . . . . . . . . . . . Overflow Damage 1537 | . 61 290 . . . . 113 117 . 70 130 198 . 85 . 289 . 119 . . 65 Projectiles 199 | . . 9 . . . . . 10 . . . 162 . . . . . 18 . . . Explosions 341 | . 3 . . . . . . 53 . . 51 . . . . 169 . . . . 65 Melee 997 | . 58 281 . . . . 113 54 . 70 79 36 . 85 . 120 . 101 . . . Knockbacks 42 | . . 5 2 . . . 5 6 . . . 20 . . . 1 . 1 2 . . Impact 8 | . . 4 . . . . 1 1 . . . . . . . 1 . 1 . . . Kinetic 29 | . . . 2 . . . 4 4 . . . 18 . . . . . . 1 . . Secondary 5 | . . 1 . . . . . 1 . . . 2 . . . . . . 1 . . Self-Inflicted Damage 832 | . . . . 53 . . 42 97 . 5 282 29 . . . 161 . . . . 163 Shots 12 | . . . . 1 . . 1 2 . . 5 1 . . . 1 . . . . 1 Rammed 4 | . . 1 . . . . . . . 2 . 1 . . . . . . . . . Targets Rammed 9 | . . 1 . . . . 1 1 . 2 . 4 . . . . . . . . . Kicked 5 | . . . . . . . 1 1 . . . 3 . . . . . . . . . Crushed . | . . . . . . . . . . . . . . . . . . . . . . Highest Temperature 424 | . . 30 171 27 . 50 97 411 213 229 424 248 216 244 184 . 198 120 234 253 182 Average Temperature 97 | . . 17 63 16 . 27 29 154 96 86 130 70 107 118 94 . 103 39 91 141 74 Received Heat Transfer 2529 | . 6 45 126 . . 108 243 423 . 284 660 141 . . . . 18 54 57 . 364 Effects 6 | . . . . . . . . 2 . . 4 . . . . . . . . . . Shutdowns 1 | . . . . . . . . . . . 1 . . . . . . . . . . Energy Bleed 1 | . . . . . . . . 1 . . . . . . . . . . . . . Interference 1 | . . . . . . . . 1 . . . . . . . . . . . . . Damage (minor) 3 | . . . . . . . . . . . 3 . . . . . . . . . . Siege Activations 1 | . . . . . . . . 1 . . . . . . . . . . . . . Total Turns 26 | . . . . . . . . 26 . . . . . . . . . . . . . Longest Duration 26 | . . . . . . . . 26 . . . . . . . . . . . . . Robots Corrupted 2 | . . . . . . . . . . . . . . . . . 1 1 . . . Combat Hostiles 2 | . . . . . . . . . . . . . . . . . 1 1 . . . Parts Fried 36 | . 6 14 . . . . 5 5 . . . . . . . . 2 4 . . . Impact Corruptions 32 | . 3 13 . . . . 4 3 . . . 1 . . . 3 . 5 . . . Robots Melted 5 | . . . . . . . . . . . 4 1 . . . . . . . . . Combat Hostiles 5 | . . . . . . . . . . . 4 1 . . . . . . . . . Parts Melted 24 | . . . . . . 1 2 1 . 5 7 7 . . 1 . . . . . . Heat Transferred 12696 | . . . . . . 925 2109 1582 . 2000 4139 1554 . . 387 . . . . . . Parts Sabotaged . | . . . . . . . . . . . . . . . . . . . . . . Parts Stolen . | . . . . . . . . . . . . . . . . . . . . . . Parts Stripped . | . . . . . . . . . . . . . . . . . . . . . . Power Chain Reactions . | . . . . . . . . . . . . . . . . . . . . . . Alert | -11 -10 -10 -9 -9 -9 -8 -8 -7 -7 -7 -6 -5 -5 -5 -5 -4 -4 -4 -4 -4 -3 ------- Run | Yrd Mat Min Mat Min Exi Min Mat Fac Was Fac Fac Fac Upp Upp War Pro Fac Upp Upp Zhi Pro Peak Influence 676 | 5 103 66 234 243 . 208 362 269 68 281 676 355 . . . . 649 . . . . Initial 600 | . 3 39 9 91 . . 80 164 68 . 113 312 . . . . 600 . . . . Average 143 | . 18 21 155 133 . 94 154 146 33 151 150 194 . . . . 597 . . . . Maximum Alert Level 2 | . . . 1 1 . 1 1 1 . 1 2 1 . . . . 2 . . . . Low Security (%) 73 | 100 100 100 60 75 . 89 70 84 100 57 78 59 . . . . . . . . . Level 1 23 | . . . 39 24 . 10 29 15 . 42 15 40 . . . . . . . . . Level 2 2 | . . . . . . . . . . . 6 . . . . . 100 . . . . Level 3 . | . . . . . . . . . . . . . . . . . . . . . . Level 4 . | . . . . . . . . . . . . . . . . . . . . . . Level 5 . | . . . . . . . . . . . . . . . . . . . . . . High Security . | . . . . . . . . . . . . . . . . . . . . . . Max Security . | . . . . . . . . . . . . . . . . . . . . . . Squads Dispatched 39 | . 1 1 . . . . 1 8 . 6 12 10 . . . . . . . . . Investigation 12 | . 1 1 . . . . 1 3 . 1 4 1 . . . . . . . . . Extermination 14 | . . . . . . . . 3 . 2 4 5 . . . . . . . . . Reinforcement 9 | . . . . . . . . 2 . 3 3 1 . . . . . . . . . Assault 1 | . . . . . . . . . . . 1 . . . . . . . . . . Garrison 3 | . . . . . . . . . . . . 3 . . . . . . . . . Intercept . | . . . . . . . . . . . . . . . . . . . . . . Searches Triggered 1 | . . . . . . . . . . . . . . . . . 1 . . . . Construction Impeded 1 | . . . . . . . . . . . 1 . . . . . . . . . . Haulers Reinforced . | . . . . . . . . . . . . . . . . . . . . . . Active Scanning Responses . | . . . . . . . . . . . . . . . . . . . . . . Cargo Convoy Interrupts . | . . . . . . . . . . . . . . . . . . . . . . Stealth | -11 -10 -10 -9 -9 -9 -8 -8 -7 -7 -7 -6 -5 -5 -5 -5 -4 -4 -4 -4 -4 -3 --------- Run | Yrd Mat Min Mat Min Exi Min Mat Fac Was Fac Fac Fac Upp Upp War Pro Fac Upp Upp Zhi Pro Distress Signals 9 | . . . . . . . 4 1 . 2 . 1 . . 1 . . . . . . Communications Jammed . | . . . . . . . . . . . . . . . . . . . . . . Distress Signals . | . . . . . . . . . . . . . . . . . . . . . . Times Spotted 259 | . 8 2 13 6 . 8 27 29 6 32 35 26 . . 23 6 1 6 14 . 17 Peak Tracking Total 18 | . 7 2 5 2 . 4 5 4 6 4 4 8 . . 18 2 2 3 8 . 10 Tactical Retreats 20 | . . . 2 . . . 4 . 1 1 2 1 . . 3 . 1 . . . 5 Traps | -11 -10 -10 -9 -9 -9 -8 -8 -7 -7 -7 -6 -5 -5 -5 -5 -4 -4 -4 -4 -4 -3 ------- Run | Yrd Mat Min Mat Min Exi Min Mat Fac Was Fac Fac Fac Upp Upp War Pro Fac Upp Upp Zhi Pro Traps Triggered 12 | . 2 . . . . . . 1 . 2 5 . 2 . . . . . . . . Indirectly . | . . . . . . . . . . . . . . . . . . . . . . Trap Hack Attempts . | . . . . . . . . . . . . . . . . . . . . . . Triggered . | . . . . . . . . . . . . . . . . . . . . . . Disarmed . | . . . . . . . . . . . . . . . . . . . . . . Reprogrammed . | . . . . . . . . . . . . . . . . . . . . . . Reused . | . . . . . . . . . . . . . . . . . . . . . . Traps Extracted . | . . . . . . . . . . . . . . . . . . . . . . Installed . | . . . . . . . . . . . . . . . . . . . . . . Triggered 11 | . . . . . . . . . . . . . . . 11 . . . . . . Machines | -11 -10 -10 -9 -9 -9 -8 -8 -7 -7 -7 -6 -5 -5 -5 -5 -4 -4 -4 -4 -4 -3 ---------- Run | Yrd Mat Min Mat Min Exi Min Mat Fac Was Fac Fac Fac Upp Upp War Pro Fac Upp Upp Zhi Pro Machines Disabled 27 | . 1 . . . . . 2 5 . 1 17 1 . . . . . . . . . Max in Single Turn 10 | . 1 . . . . . 1 5 . 1 10 1 . . . . . . . . . Garrison Access 2 | . . . . . . . . 1 . . 1 . . . . . . . . . . Machines Repaired . | . . . . . . . . . . . . . . . . . . . . . . Machines Dismantled . | . . . . . . . . . . . . . . . . . . . . . . Machines Sabotaged . | . . . . . . . . . . . . . . . . . . . . . . Overloaded Fab Kills . | . . . . . . . . . . . . . . . . . . . . . . Hacking | -11 -10 -10 -9 -9 -9 -8 -8 -7 -7 -7 -6 -5 -5 -5 -5 -4 -4 -4 -4 -4 -3 --------- Run | Yrd Mat Min Mat Min Exi Min Mat Fac Was Fac Fac Fac Upp Upp War Pro Fac Upp Upp Zhi Pro Machines Accessed 78 | . 4 1 . 1 2 . 7 10 . 15 11 9 . . 7 . 2 . . 9 . Terminals 28 | . 3 . . . . . 5 5 . 7 5 3 . . . . . . . . . Fabricators 11 | . . . . . . . . 4 . 1 2 3 . . . . 1 . . . . Repair Stations 7 | . . . . . . . . . . 2 1 3 . . . . 1 . . . . Recycling Units 6 | . 1 . . . . . 2 . . 3 . . . . . . . . . . . Scanalyzers 3 | . . . . . . . . . . 1 2 . . . . . . . . . . Garrison Access 3 | . . . . . . . . 1 . 1 1 . . . . . . . . . . Total Hacks 221 | . 9 1 . 1 24 . 19 30 . 30 28 19 . . 8 . 4 . . 48 . Successful 138 | . 5 1 . 1 24 . 7 10 . 10 17 7 . . 8 . . . . 48 . Failed 82 | . 3 . . . . . 12 20 . 20 11 12 . . . . 4 . . . . Catastrophic 21 | . 1 . . . . . . 6 . 8 2 4 . . . . . . . . . Database Lockouts 1 | . 1 . . . . . . . . . . . . . . . . . . . . Manual 59 | . 13 . . . 1 . 4 12 . 14 4 9 . . . . 2 . . . . Terminals 76 | . 8 . . . . . 17 15 . 16 13 7 . . . . . . . . . Fabricators 28 | . . . . . . . . 14 . 1 4 7 . . . . 2 . . . . Repair Stations 13 | . . . . . . . . . . 5 1 5 . . . . 2 . . . . Recycling Units 8 | . 1 . . . . . 2 . . 5 . . . . . . . . . . . Scanalyzers 11 | . . . . . . . . . . 2 9 . . . . . . . . . . Garrison Access 3 | . . . . . . . . 1 . 1 1 . . . . . . . . . . Terminal Hacks 98 | . 3 1 . 1 24 . 3 5 . 1 3 1 . . 8 . . . . 48 . Record 66 | . . . . . 23 . . . . . . . . . 7 . . . . 36 . Part Schematic 6 | . 1 . . . . . . 1 . . . . . . . . . . . 4 . Robot Analysis 4 | . . . . . . . . . . . . . . . . . . . . 4 . Prototype ID Bank 7 | . . . . . . . 2 . . . 1 . . . . . . . . 4 . Open Door 3 | . . 1 . 1 . . . . . . . . . . 1 . . . . . . Level Access Points 1 | . . . . . . . . . . 1 . . . . . . . . . . . Branch Access Points 3 | . 1 . . . . . . 1 . . 1 . . . . . . . . . . Alert Level 4 | . 1 . . . . . 1 1 . . 1 . . . . . . . . . . Unreport Threat 2 | . . . . . . . . 2 . . . . . . . . . . . . . Recall Investigation 1 | . . . . . . . . . . . . 1 . . . . . . . . . Derelict Proto ID Bank 1 | . . . . . 1 . . . . . . . . . . . . . . . . Fabricator Hacks 9 | . . . . . . . . 3 . . 3 3 . . . . . . . . . Network Status 2 | . . . . . . . . 1 . . . 1 . . . . . . . . . Load Schematic 3 | . . . . . . . . 1 . . 1 1 . . . . . . . . . Build 4 | . . . . . . . . 1 . . 2 1 . . . . . . . . . Repair Station Hacks 4 | . . . . . . . . . . 3 . 1 . . . . . . . . . Scan Component 3 | . . . . . . . . . . 2 . 1 . . . . . . . . . Repair 1 | . . . . . . . . . . 1 . . . . . . . . . . . Recycling Unit Hacks 4 | . 1 . . . . . 2 . . 1 . . . . . . . . . . . Retrieve Components 4 | . 1 . . . . . 2 . . 1 . . . . . . . . . . . Scanalyzer 10 | . . . . . . . . . . 2 8 . . . . . . . . . . Insert Component 5 | . . . . . . . . . . 1 4 . . . . . . . . . . Analyze 5 | . . . . . . . . . . 1 4 . . . . . . . . . . Garrison Access Hacks 2 | . . . . . . . . 1 . . 1 . . . . . . . . . . Seal Access 2 | . . . . . . . . 1 . . 1 . . . . . . . . . . Unauthorized Hacks 11 | . 1 . . . . . 2 1 . 3 2 2 . . . . . . . . . Terminals 11 | . 1 . . . . . 2 1 . 3 2 2 . . . . . . . . . Botnet 11 | . 1 . . . . . 2 1 . 3 2 2 . . . . . . . . . Fabricators . | . . . . . . . . . . . . . . . . . . . . . . Repair Stations . | . . . . . . . . . . . . . . . . . . . . . . Recycling Units . | . . . . . . . . . . . . . . . . . . . . . . Scanalyzers . | . . . . . . . . . . . . . . . . . . . . . . Garrison Access . | . . . . . . . . . . . . . . . . . . . . . . Data Cores Recovered . | . . . . . . . . . . . . . . . . . . . . . . Used . | . . . . . . . . . . . . . . . . . . . . . . Hacking Detections 52 | . 4 . . . . . 6 9 . 13 10 8 . . . . 2 . . . . Full Trace Events 7 | . . . . . . . 1 3 . . 2 1 . . . . . . . . . Feedback Events 1 | . . . . . . . . . . . . 1 . . . . . . . . . Corruption 1 | . . . . . . . . . . . . 1 . . . . . . . . . Feedback Blocked . | . . . . . . . . . . . . . . . . . . . . . . Robot Schematics Acquired . | . . . . . . . . . . . . . . . . . . . . . . Robots Built 3 | . . . . . . . . . . . 3 . . . . . . . . . . Authchips . | . . . . . . . . . . . . . . . . . . . . . . Time 134 | . . . . . . . . . . . 134 . . . . . . . . . . Total Robot Build Rating 12 | . . . . . . . . . . . 12 . . . . . . . . . . Part Schematics Acquired 9 | . 1 . . . . . . 1 . . 3 . . . . . . . . 4 . Parts Built 4 | . . . . . . . . 1 . . 1 2 . . . . . . . . . Authchips . | . . . . . . . . . . . . . . . . . . . . . . Time 270 | . . . . . . . . 58 . . 84 128 . . . . . . . . . Total Part Build Rating 27 | . . . . . . . . 7 . . 4 16 . . . . . . . . . Parts Repaired 1 | . . . . . . . . . . 1 . . . . . . . . . . . Time 44 | . . . . . . . . . . 44 . . . . . . . . . . . Parts Recycled . | . . . . . . . . . . . . . . . . . . . . . . Recycled Matter . | . . . . . . . . . . . . . . . . . . . . . . Retrieved Matter . | . . . . . . . . . . . . . . . . . . . . . . Retrieved Components 16 | . 3 . . . . . 3 . . 10 . . . . . . . . . . . Parts Scanalyzed 5 | . . . . . . . . . . 1 4 . . . . . . . . . . Part Schematics Acquired 3 | . . . . . . . . . . . 3 . . . . . . . . . . Parts Damaged . | . . . . . . . . . . . . . . . . . . . . . . Bothacking | -11 -10 -10 -9 -9 -9 -8 -8 -7 -7 -7 -6 -5 -5 -5 -5 -4 -4 -4 -4 -4 -3 ------------ Run | Yrd Mat Min Mat Min Exi Min Mat Fac Was Fac Fac Fac Upp Upp War Pro Fac Upp Upp Zhi Pro Used RIF Installer . | . . . . . . . . . . . . . . . . . . . . . . Robots Hacked . | . . . . . . . . . . . . . . . . . . . . . . Non-combat . | . . . . . . . . . . . . . . . . . . . . . . Combat . | . . . . . . . . . . . . . . . . . . . . . . Robot Hacks Applied . | . . . . . . . . . . . . . . . . . . . . . . Relay Couplers Released . | . . . . . . . . . . . . . . . . . . . . . . Fabnet Peak Effective % . | . . . . . . . . . . . . . . . . . . . . . . Robots Rewired 2 | . . . . . . . . . . . . . . . . . . 1 1 . . Allies Hacked 1 | . . . . . . . . . . . 1 . . . . . . . . . . Hacks Repelled . | . . . . . . . . . . . . . . . . . . . . . . Allies | -11 -10 -10 -9 -9 -9 -8 -8 -7 -7 -7 -6 -5 -5 -5 -5 -4 -4 -4 -4 -4 -3 -------- Run | Yrd Mat Min Mat Min Exi Min Mat Fac Was Fac Fac Fac Upp Upp War Pro Fac Upp Upp Zhi Pro Total Allies 7 | . . . . 1 . . . . 1 . 3 . . . . . . 1 1 . . Largest Group 3 | . . . . 1 . . . . 1 . 3 1 . . . . . 1 1 . . Highest-Rated Group 90 | . . . . 31 . . . . 31 . 90 30 . . . . . 47 49 . . Highest-Rated Ally 49 | . . . . 31 . . . . 31 . 30 30 . . . . . 47 49 . . Total Orders 3 | . . . . . . . . . 1 . . . . 2 . . . . . . . EXPLORE 2 | . . . . . . . . . . . . . . 2 . . . . . . . RETURN 1 | . . . . . . . . . 1 . . . . . . . . . . . . Ally Attacks 37 | . . . . 3 . . . . 9 . 19 . . . . . . 5 1 . . Total Damage 888 | . . . . 66 . . . . 126 . 509 . . . . . . 138 49 . . Kills 6 | . . . . 2 . . . . . . 3 . . . . . . . 1 . . Allies Corrupted . | . . . . . . . . . . . . . . . . . . . . . . Allies Melted . | . . . . . . . . . . . . . . . . . . . . . . Intel | -11 -10 -10 -9 -9 -9 -8 -8 -7 -7 -7 -6 -5 -5 -5 -5 -4 -4 -4 -4 -4 -3 ------- Run | Yrd Mat Min Mat Min Exi Min Mat Fac Was Fac Fac Fac Upp Upp War Pro Fac Upp Upp Zhi Pro Robot Analysis Total 4 | . . . . . . . . . . . . . . . . . . . . 4 . Derelict Logs Recovered 10 | . . 2 . 1 . . . . . . . . 3 2 . . . 1 1 . . Drone Launches 6 | . . . . . . . . . 3 . . . . 3 . . . . . . . Drone Recoveries 3 | . . . . . . . . . 3 . . . . . . . . . . . . Exploration | -11 -10 -10 -9 -9 -9 -8 -8 -7 -7 -7 -6 -5 -5 -5 -5 -4 -4 -4 -4 -4 -3 ------------- Run | Yrd Mat Min Mat Min Exi Min Mat Fac Was Fac Fac Fac Upp Upp War Pro Fac Upp Upp Zhi Pro Turns Passed 22621 | 171 588 1328 319 754 820 248 2279 2187 207 2297 2502 2095 613 332 1166 709 285 1779 1225 444 273 Spaces Moved 15826 | 93 342 775 113 460 510 142 915 1111 229 1904 1668 1446 1199 428 1031 569 177 1384 798 289 243 Core 2610 | 9 . . . . . . . 1 153 160 7 423 1199 428 230 . . . . . . Treads 3152 | 84 342 775 113 460 510 142 665 . . . . 61 . . . . . . . . . Legs 5915 | . . . . . . . 250 1110 76 . 62 949 . . 99 569 177 1384 798 289 152 Wheels 3356 | . . . . . . . . . . 1744 1599 13 . . . . . . . . . Hover 702 | . . . . . . . . . . . . . . . 702 . . . . . . Flight 91 | . . . . . . . . . . . . . . . . . . . . . 91 Fastest Speed 50 | 50 160 160 160 160 160 160 160 120 50 50 100 50 50 50 66 110 120 120 120 120 50 Average Speed 120 | 155 160 160 160 160 160 160 192 160 78 96 108 103 50 62 107 113 120 120 142 143 93 Slowest Speed 1150 | 200 160 160 160 160 160 160 320 1150 190 105 700 260 50 100 200 120 120 190 190 190 120 Overloaded Moves . | . . . . . . . . . . . . . . . . . . . . . . Propulsion Burnouts . | . . . . . . . . . . . . . . . . . . . . . . Robots Hopped 3 | . . . . . . . . . . . . . . . . . . . . . 3 Cave-ins Triggered 2 | . . . . . . . . . . 1 1 . . . . . . . . . . Teleports 1 | . . . . . . . . . . . . . . . . . . . . 1 . Exploration Rate (%) 53 | 6 52 96 12 77 89 37 49 20 79 38 45 30 75 57 89 64 4 97 69 63 38 Regions Visited 21 Branch Regions 12 Pre-discovered Areas 6 | . . . . 1 1 . . . . . . . 1 . . . . . . 3 . Known Exits Taken 13 | . 1 . 1 . . 1 . . . 1 . 1 1 1 1 1 1 1 1 1 . Unknown Exits Taken 6 | 1 . 1 . 1 1 . 1 . . . 1 . . . . . . . . . . Scrap Searched 16 | . . 1 . 3 . 1 . . . . . . 3 3 . . . 3 1 . 1 Spaces Dug 122 | . 2 4 . . . . 13 9 . 12 46 24 . . . . 2 . 10 . . Terrain Destroyed 640 | . 8 4 4 11 . 3 75 61 . 19 142 76 . . 8 118 2 34 10 . 65 Melee 92 | . 2 4 . . . . 7 9 . 12 35 21 . . . . 2 . . . . Projectile 79 | . . . 4 1 . 3 25 1 . . 16 14 . . 2 . . . 10 . 3 AOE 468 | . 6 . . 10 . . 43 51 . 7 91 41 . . 6 117 . 34 . . 62 Terrain Rammed . | . . . . . . . . . . . . . . . . . . . . . . Walls Destroyed . | . . . . . . . . . . . . . . . . . . . . . . Machines Disabled . | . . . . . . . . . . . . . . . . . . . . . . Actions | -11 -10 -10 -9 -9 -9 -8 -8 -7 -7 -7 -6 -5 -5 -5 -5 -4 -4 -4 -4 -4 -3 --------- Run | Yrd Mat Min Mat Min Exi Min Mat Fac Was Fac Fac Fac Upp Upp War Pro Fac Upp Upp Zhi Pro Total 18552 | 110 371 831 209 476 516 163 1363 1346 246 2265 2194 1913 1214 489 1081 611 237 1474 858 317 268 Wait 1677 | 5 3 17 70 8 . 20 348 93 3 236 340 322 4 43 21 22 44 43 16 15 4 Move 15802 | 92 341 774 112 459 509 141 914 1111 228 1903 1667 1445 1198 427 1030 568 176 1383 797 288 239 Hop 1 | . . . . . . . . . . . . . . . . . . . . . 1 Pick Up 119 | 2 10 6 2 3 2 1 12 10 . 17 19 12 5 4 5 . 4 2 2 1 . Fast Attach 107 | 7 1 . 1 . 1 . 6 7 3 22 15 14 . 2 9 2 5 3 . 8 1 Attach 77 | . . . 1 . . . 3 10 . 1 16 14 1 3 4 6 . 2 8 2 6 Detach 30 | . . . . . . . 3 3 . 3 3 2 . 2 3 1 1 1 6 2 . Swap 63 | 1 3 4 1 3 . . 6 16 3 7 10 4 1 . 4 . . . . . . Drop 105 | . 5 7 1 2 4 1 11 8 2 20 17 13 4 2 3 . . 4 . 1 . Fire 372 | 3 2 4 21 1 . . 41 57 7 34 67 60 . . 2 9 3 20 24 . 17 Melee 166 | . 6 18 . . . . 18 29 . 20 40 23 . 4 . 3 4 1 . . . Ram 2 | . . . . . . . . . . 2 . . . . . . . . . . . Kick 5 | . . . . . . . 1 1 . . . 3 . . . . . . . . . Crush 2 | . . 1 . . . . . . . . . 1 . . . . . . . . . Escape Stasis . | . . . . . . . . . . . . . . . . . . . . . . Rewire 24 | . . . . . . . . 1 . . . . 1 2 . . . 15 5 . . Trap . | . . . . . . . . . . . . . . . . . . . . . . Miscellaneous . | . . . . . . . . . . . . . . . . . . . . . . Route ------- -11/Scrapyard -10/Materials (discovered 2 exits: [*Mat] / *Min) -10/Mines (discovered 2 exits: [*Mat x2]) -9/Materials (discovered 4 exits: Mat / *Min x2 / Sto) -9/Mines (discovered 2 exits: *Mat / *Exi) -9/Exiles (discovered 2 exits: [*Min x2]) -8/Mines -8/Materials -7/Factory (discovered 4 exits: *Fac x2 / Low x2) -7/Waste -7/Factory (discovered 5 exits: *Fac x4 / *Low) -6/Factory (discovered 4 exits: *Fac x2 / Low x2) -5/Factory (discovered 2 exits: *Fac / *Upp) -5/Upper Caves -5/Upper Caves (discovered 2 exits: Fac / *War) -5/Warlord -4/Proximity Caves -4/Factory (discovered 2 exits: Res / *Upp) -4/Upper Caves -4/Upper Caves -4/Zhirov -3/Proximity Caves History --------- Turn | Location | Event 29 | -11/Scrapyard | Discovered new exit (range 16) 172 | -11/Scrapyard | Entered Materials 192 | -10/Materials | Discovered new exit (range 15) 242 | -10/Materials | Identified exit to Mines 242 | -10/Materials | Central database locked down 314 | -10/Materials | Build established: Mutant 653 | -10/Materials | Discovered new exit (range 8) 760 | -10/Materials | Entered Mines 792 | -10/Mines | Discovered new exit (range 16) 828 | -10/Mines | Joined a pair of Derelicts in attacking an 0b10 outpost 1238 | -10/Mines | Learned 4 Materials zone layouts 1344 | -10/Mines | Discovered new exit (range 12) 1499 | -10/Mines | Learned 2 Materials zone layouts 1858 | -10/Mines | Met a Derelict shopkeep closing up shop 2088 | -10/Mines | Entered Materials 2088 | -9/Materials | Evolved 2 slots: Propulsion x2 2089 | -9/Materials | Identified exit to Materials 2089 | -9/Materials | Identified exit to Mines 2089 | -9/Materials | Identified exit to Storage 2385 | -9/Materials | Discovered exit to Mines (range 9) 2407 | -9/Materials | Entered Mines 2481 | -9/Mines | Learned location of Zion (-7) 2546 | -9/Mines | Received a Mining Laser from a helpful Derelict 2550 | -9/Mines | Discovered exit to Materials (range 7) 2965 | -9/Mines | Found the Drone Emporium 2981 | -9/Mines | Found Prototype Device 3150 | -9/Mines | Deemed a non-threat by the Exiles lab entrance 3151 | -9/Mines | Discovered new exit (range 5) 3161 | -9/Mines | Entered Exiles 3201 | -9/Exiles | Discovered new exit (range 15) 3240 | -9/Exiles | Met 8R-AWN 3270 | -9/Exiles | Met EX-HEX 3339 | -9/Exiles | Met EX-BIN 3358 | -9/Exiles | Aligned with FarCom system 3360 | -9/Exiles | Given EX-Vault access code 3411 | -9/Exiles | Opened EX-Vault 3435 | -9/Exiles | Found AWS/Thermal 3487 | -9/Exiles | Warned to stay clear of 0b10 Research branches 3545 | -9/Exiles | Met EX-DEC 3651 | -9/Exiles | Visited The Gauntlet 3949 | -9/Exiles | Discovered new exit (range 15) 3981 | -9/Exiles | Left Exiles lab with AWS/Thermal 3981 | -9/Exiles | Entered Mines 4111 | -8/Mines | Discovered exit to Materials (range 11) 4229 | -8/Mines | Entered Materials 4229 | -8/Materials | Evolved 2 slots: Utility x1, Weapon x1 5486 | -8/Materials | Build established: Scavenger-Skirmisher 6194 | -8/Materials | Discovered new exit (range 15) 6508 | -8/Materials | Entered Factory 6508 | -7/Factory | Evolved 2 slots: Utility x2 6548 | -7/Factory | Build established: Scavenger-Mutant 7087 | -7/Factory | Discovered new exit (range 8) 7189 | -7/Factory | Identified exit to Lower Caves 7230 | -7/Factory | Discovered new exit (range 8) 7330 | -7/Factory | Lost 3 parts (1p2n) 7605 | -7/Factory | Build established: Scavenger-Skirmisher 8046 | -7/Factory | Build established: Scavenger-Mutant 8207 | -7/Factory | Fabricated Hvy. Siege Treads? 8603 | -7/Factory | Lost 3 parts (1n1u1w) 8695 | -7/Factory | Sucked down chute 8695 | -7/Factory | Entered Waste 8696 | -7/Waste | Met a frightened Derelict 8707 | -7/Waste | Identified Thief Drone Bay 8731 | -7/Waste | Spotted C-40 Crusher 8738 | -7/Waste | Spotted C-40 Crusher 8743 | -7/Waste | Spotted C-40 Crusher 8802 | -7/Waste | Crushed by Compactor (1 part destroyed, 1 dropped) 8810 | -7/Waste | Spotted C-40 Crusher 8814 | -7/Waste | Crushed by Compactor (1 part destroyed, 2 dropped) 8818 | -7/Waste | Spotted C-40 Crusher 8823 | -7/Waste | Crushed by Compactor (1 part destroyed, 2 dropped) 8824 | -7/Waste | Crushed by Compactor (1 part destroyed, 1 dropped) 8842 | -7/Waste | Crushed by Compactor (1 part destroyed, 1 dropped) 8843 | -7/Waste | Core integrity fell below 50% 8852 | -7/Waste | Spotted C-40 Crusher 8873 | -7/Waste | Lost 6 parts (1p1n3u1w) 8889 | -7/Waste | Discovered new exit (range 12) 8902 | -7/Waste | Entered Factory 9147 | -7/Factory | Build established: Mutant 9717 | -7/Factory | Core integrity fell below 20% 9717 | -7/Factory | System corruption reached 10% 9853 | -7/Factory | Crushed by falling debris 9925 | -7/Factory | Repaired Imp. Medium Armor Plating 10116 | -7/Factory | Build established: Gunner 10868 | -7/Factory | Discovered exit to Lower Caves (range 15) 11108 | -7/Factory | Identified exit to Factory 11199 | -7/Factory | Entered another Factory area 11199 | -6/Factory | Evolved 2 slots: Utility x1, Weapon x1 12144 | -6/Factory | Build established: Tank 12171 | -6/Factory | Crushed by falling debris 12202 | -6/Factory | Lost 3 parts (1u2w) 12685 | -6/Factory | Discovered new exit (range 4) 12851 | -6/Factory | Lost 5 parts (1p1n2u1w) 12956 | -6/Factory | Fabricated Imp. Cooling System? 13123 | -6/Factory | Identified exit to Lower Caves 13226 | -6/Factory | Build established: Scavenger-Skirmisher 13516 | -6/Factory | Fabricated L-41 Fighter? 13568 | -6/Factory | Lost 4 parts (1n1u2w) 13649 | -6/Factory | First assault squad dispatched 13665 | -6/Factory | Discovered new exit (range 15) 13701 | -6/Factory | Entered another Factory area 13701 | -5/Factory | Accompanied by 1 ally 13701 | -5/Factory | Evolved 2 slots: Propulsion x1, Utility x1 14350 | -5/Factory | Build established: Scavenger-Tank 14576 | -5/Factory | Discovered new exit (range 16) 14632 | -5/Factory | Fabricated Mic. Antimatter Reactor? 14645 | -5/Factory | Identified exit to Factory 15120 | -5/Factory | System corruption reached 10% 15374 | -5/Factory | Lost 10 parts (2p2n4u2w) 15375 | -5/Factory | Garrison activated, responded to threat 15466 | -5/Factory | Lost 7 parts (1p3n1u2w) 15570 | -5/Factory | Build established: Mutant 15764 | -5/Factory | Discovered new exit (range 7) 15795 | -5/Factory | Identified exit to Upper Caves 15796 | -5/Factory | Entered Upper Caves 15800 | -5/Upper Caves | Learned 4 Factory zone layouts 15885 | -5/Upper Caves | Encountered a Warlord checkpoint 16183 | -5/Upper Caves | Learned location of Armory (-3) 16202 | -5/Upper Caves | Discovered new exit (range 17) 16212 | -5/Upper Caves | Identified exit to Upper Caves 16241 | -5/Upper Caves | Learned Factory emergency access door positions 16409 | -5/Upper Caves | Entered another Upper Caves area 16428 | -5/Upper Caves | Learned 4 Factory zone layouts 16553 | -5/Upper Caves | Encountered a Warlord checkpoint 16675 | -5/Upper Caves | Discovered new exit (range 17) 16692 | -5/Upper Caves | Identified exit to Warlord 16741 | -5/Upper Caves | Entered Warlord 16830 | -5/Warlord | Discovered new exit (range 9) 16841 | -5/Warlord | Identified exit to Proximity Caves 16919 | -5/Warlord | System corruption cleaned by Quarantine Array 16973 | -5/Warlord | Build established: Derelict-Assassin 17142 | -5/Warlord | Met Warlord 17167 | -5/Warlord | Warlord's base attacked by MAIN.C 17517 | -5/Warlord | Warlord forces counterattacked 17541 | -5/Warlord | Found Prototype Launcher 17543 | -5/Warlord | Found Prototype Energy Gun 17806 | -5/Warlord | Spotted B-86 Titan 17807 | -5/Warlord | Spotted Executioner 17811 | -5/Warlord | Spotted B-75 Beast 17842 | -5/Warlord | Warlord base infiltrated, sounded retreat 17867 | -5/Warlord | Spotted Striker 17867 | -5/Warlord | Spotted Striker 17868 | -5/Warlord | Identified Vortex Shotgun 17869 | -5/Warlord | Spotted Striker 17893 | -5/Warlord | Core integrity fell below 50% 17907 | -5/Warlord | Entered Proximity Caves 17934 | -4/Proximity Caves | Lost 8 parts (1p2n1u4w) 17945 | -4/Proximity Caves | Identified Vortex Catalyst Activator 17979 | -4/Proximity Caves | Lost 3 parts (2n1u) 18178 | -4/Proximity Caves | Spotter reported a threat 18284 | -4/Proximity Caves | Spotter reported a threat 18290 | -4/Proximity Caves | Build established: Scavenger-Assassin 18293 | -4/Proximity Caves | Spotter reported a threat 18355 | -4/Proximity Caves | Discovered exit to Factory (range 18) 18378 | -4/Proximity Caves | Spotter reported a threat 18616 | -4/Proximity Caves | Entered Factory 18616 | -4/Factory | Evolved 2 slots: Propulsion x1, Utility x1 18617 | -4/Factory | Identified exit to Research 18794 | -4/Factory | Discovered new exit (range 10) 18837 | -4/Factory | Identified exit to Upper Caves 18866 | -4/Factory | Search patrols dispatched 18901 | -4/Factory | Entered Upper Caves 18987 | -4/Upper Caves | Learned Research security intel 19465 | -4/Upper Caves | Spotted B-86 Titan 19656 | -4/Upper Caves | Discovered new exit (range 19) 19686 | -4/Upper Caves | Identified exit to Upper Caves 19844 | -4/Upper Caves | Attracted the attention of an 0b10 checkpoint 19984 | -4/Upper Caves | Build established: Derelict-Assassin 20436 | -4/Upper Caves | Destroyed B-86 Titan 20459 | -4/Upper Caves | Lost 4 parts (2n1u1w) 20680 | -4/Upper Caves | Entered another Upper Caves area 20710 | -4/Upper Caves | Build established: Mutant 21046 | -4/Upper Caves | Build established: Scavenger-Mutant 21495 | -4/Upper Caves | Attracted the attention of an 0b10 checkpoint 21571 | -4/Upper Caves | Learned Research stockpile data 21867 | -4/Upper Caves | Discovered new exit (range 17) 21903 | -4/Upper Caves | Identified exit to Zhirov 21905 | -4/Upper Caves | Entered Zhirov 21908 | -4/Zhirov | Discovered new exit (range 3) 21914 | -4/Zhirov | Identified exit to Proximity Caves 21936 | -4/Zhirov | Lost 5 parts (1p2n2u) 21946 | -4/Zhirov | Met Zhirov 21990 | -4/Zhirov | Learned location of Quarantine (-2) 21990 | -4/Zhirov | Learned location of Testing (-3) 21990 | -4/Zhirov | Learned location of Command (-1) 22054 | -4/Zhirov | Zhirov requested help retrieving the SGEMP Prototype 22191 | -4/Zhirov | Build established: Mutant 22219 | -4/Zhirov | Found Alien Artifact 22219 | -4/Zhirov | Identified Transdimensional Reconstructor 22219 | -4/Zhirov | Warped through subspace 22275 | -4/Zhirov | Found Alien Artifact 22275 | -4/Zhirov | Identified Integrated Reactor 22275 | -4/Zhirov | Installed Integrated Reactor, increased core energy generation (+10) 22349 | -4/Zhirov | Entered Proximity Caves 22431 | -3/Proximity Caves | Attracted the attention of an 0b10 checkpoint 22457 | -3/Proximity Caves | Attracted the attention of an 0b10 base 22508 | -3/Proximity Caves | Core integrity fell below 50% 22513 | -3/Proximity Caves | Lost 4 parts (2n1u1w) 22584 | -3/Proximity Caves | Lost 6 parts (2n2u2w) 22590 | -3/Proximity Caves | Core integrity fell below 20% 22622 | -3/Proximity Caves | Destroyed by S-43 Plague with Heavy Machine Gun Last Messages --------------- 22604_ S-43 Plague suffers critical hit (Destroy). 22604_ S-43 Plague destroyed. 22604_ HV Slug penetrates Wall. 22606_ HV Slug penetrates S-43 Plague. 22606_ HV Slug penetrates Wall. 22608_ HV Slug penetrates S-43 Plague. 22608_ S-43 Plague suffers critical hit (Destroy). 22608_ Destroyed Lgt. Antimatter Reactor. 22608_ HV Slug penetrates Wall. 22611_ Xenon Bombardment Thruster fries itself beyond repair. 22612_ Adv. Power Amplifier destroyed. 22612_ HV Slug penetrates S-43 Plague. 22612_ HV Slug penetrates Wall. 22616_ Hyp. Coil Gun destroyed. 22617_ Xenon Bombardment Thruster fries itself beyond repair. 22617_ HV Slug penetrates Wall. 22618_ Adv. Myomer Leg destroyed. 22619_ HV Slug penetrates S-43 Plague. 22621_ S-43 Plague suffers critical hit (Destroy). 22621_ S-43 Plague destroyed. Map ----- +----------------------------------------------------+ | # #????????# ! | | ## ???????# ## # ###### ## ## | | ?## ?????# #?# ## #? | | #?# ## ???###??# ## | | #?###? #???????# ########## | | #????? # ####???????# ###??????## | | #?????### ############ ####????#### | | ????????? # #???????## | | ?????????? # #????????## ## # | | ???????????# #????##???##### # | | ???????????# """""" "" "" #??? #???????# | | ???????????# """""" """""" ### ##### #?## | | ???????????# """""" """""" #??## | | ????????????? """""" """""" #???### | | ???????????# ## #????# | | ????????#? ?? """""" """""" #? # #? | | ????????# """""" """""" #?? #? ## ? | | ????????# """""" """""" #??? ??????# ?? | | ???????????# """""" """""" #???? ???????? ?? | | ???????????# #???? ???????????? | | ???????????# #????? ??????????? | | ???????????# #?????? ?????????? | | ???????????############ #######???????##????????? | | ?????????????????????##= #???????????????????????? | | ????????????????????##s%%##??????????????????????? | | ????????????????????# @#??????????????????????? | | ???????????????????# ####??????????????????????? | | ???????????????????## #??????????????????????????? | | ????????????????????##???????????????????????????? | | ?????????????????????????????????????????????????? | | ?????????????????????????????????????????????????? | | ?????????????????????????????????????????????????? | | ?????????????????????????????????????????????????? | | ?????????????????????????????????????????????????? | | ?????????????????????????????????????????????????? | | ?????????????????????????????????????????????????? | | ?????????????????????????????????????????????????? | | ?????????????????????????????????????????????????? | | ?????????????????????????????????????????????????? | | ?????????????????????????????????????????????????? | | ?????????????????????????????????????????????????? | | ?????????????????????????????????????????????????? | | ?????????????????????????????????????????????????? | | ?????????????????????????????????????????????????? | | ?????????????????????????????????????????????????? | | ?????????????????????????????????????????????????? | | ?????????????????????????????????????????????????? | | ?????????????????????????????????????????????????? | | ?????????????????????????????????????????????????? | | ?????????????????????????????????????????????????? | +----------------------------------------------------+ Best States ------------- Heat Dissipation 87 Energy Generation 23 Energy Capacity 500 Matter Stores 300 Matter Capacity 300 Sight Range 22 Robot Scan Range 15 Terrain Scan Range 20 Terrain Scan Density 210 Power Amplification 30 Armor Coverage 900 Resistance: KI 30 Core Shielding 30 Utility Shielding 90 Weapon Cycling 15 Evasion (%) 60 Targeting Accuracy 32 Recoil Reduction 3 Energy Filtering 50 Offensive Hacking 10 Defensive Hacking 14 Authchip Count 1 Item Schematics ----------------- Med. Storage Unit | -10/Materials | Hacked Imp. Cooling System | -7/Factory | Hacked Imp. Cesium-ion Thruster | -6/Factory | Scanalyzed Arm. Huge Wheel | -6/Factory | Scanalyzed Imp. Light Armor Plating | -6/Factory | Scanalyzed Assault Drone Bay | -4/Zhirov | Free Exp. Heat Sink | -4/Zhirov | Free Exp. Optical Array | -4/Zhirov | Free Imp. Arc Thrower | -4/Zhirov | Free Robot Schematics ------------------ None Fabricated ------------ Hvy. Siege Treads | x1 | -7/Factory | Preloaded Imp. Cooling System | x1 | -6/Factory L-41 Fighter | x3 | -6/Factory | Preloaded Mic. Antimatter Reactor | x2 | -5/Factory | Preloaded Alien Tech Used ----------------- Transdimensional Reconstructor Integrated Reactor Achievements -------------- Knowing Is Half The Battle The Science Guy Challenges ------------ None Game ------ Seed WeightLauncherPendant Manual? 0 Play Time 03:43:27 Cumulative 94.1 hours Start 2024.06.05 @ 17:06:08 End 2024.06.06 @ 19:24:37 Sessions 9 Manual Loads 0 Difficulty Rogue Special Mode None Game No. 71 Rogue 71 Adventurer 0 Explorer 0 Win Type - Total 0 Types 0/0/0/0/0/0/0/0/0 Lore% 36 Gallery% 47 Achievement% 35 Wizard Run 0 Options --------- Layout 2 ASCII 1 Keyboard 1 Movement Arrows Keybinds 0 Fullscreen 0 Font 20/SmallcapsGlow Map View 64x51 Zoom Use 0% Tactical HUD 1 Map Filters NONE Filters NONE Steam 1 RUN: 4fb24a64-656f-4c8c-98d5-d549e57a69ae